fUSD/lending_fUSD_20240821
["ID","MTS","AMOUNT","RATE_DAILY","PERIOD"]
[335471204,1724251832893,-1414.61742938,0.0001366,2]
[335471205,1724251832902,-1414.61742938,0.0001366,2]
[335471206,1724251832912,-166.71147446,0.00013667,2]
[335471207,1724251832922,-99787.28451281,0.0001367,2]
[335471208,1724251832964,-360.68431585,0.0001367,2]
[335471209,1724251832975,-711.01118688,0.0001367,2]
[335471210,1724251832987,-2527.91072361,0.0001367,2]
[335471211,1724251832999,-536.83568415,0.0001367,2]
[335471212,1724251833010,-3849.59380467,0.0001367,2]
[335471216,1724251838173,-1264.43557993,0.0001367,2]
[335471217,1724251838188,-33647.84490478,0.0001367,2]
[335471218,1724251838291,-12222.79185466,0.0001367,2]
[335471219,1724251838387,-705331.88546416,0.0001367,2]
[335471220,1724251838396,-224077.98626405,0.0001367,2]
[335471221,1724251838407,-9551.0,0.0001367,2]
[335471222,1724251838493,-2644.17619719,0.0001367,2]
[335471360,1724251840336,-5859.46811615,0.0001367,2]
[335471361,1724251840348,-1514.00459248,0.0001367,2]
[335471362,1724251840434,-15627.00111743,0.0001367,2]
[335471363,1724251840449,-4064.73732992,0.0001367,2]
[335471364,1724251840460,-29872.41132061,0.0001367,2]
[335471366,1724251840550,-504.65655743,0.0001367,2]
[335471367,1724251840562,-21580.0,0.0001367,2]
[335471369,1724251840573,-435.92970156,0.0001367,2]
[335471639,1724251843476,-281.91,0.00010977,2]
[335471642,1724251843486,-23.83999996,0.00013241,2]
[335471645,1724251843497,-258.07000004,0.00013241,2]
[335471648,1724251843506,-345.49506177,0.0001367,2]
[335471652,1724251843517,-334449.49614068,0.0001367,2]
[335471655,1724251843529,-1956094.94599523,0.0001367,2]
[335471664,1724251843597,-29812.57360434,0.0001367,2]
[335471666,1724251843609,-642.70249532,0.0001367,2]
[335471668,1724251843621,-1109.25964547,0.0001367,2]
[335471670,1724251843632,-1503.0,0.0001367,2]
[335471678,1724251843721,-548.27937836,0.0001367,2]
[335471681,1724251843733,-495.13548268,0.0001367,2]
[335471760,1724251844477,-6206.83536634,0.0001367,2]
[335471762,1724251844488,-382.92113158,0.0001367,2]
[335471765,1724251844499,-852.50000011,0.0001367,2]
[335471844,1724251846290,-297.63621753,0.0001367,2]
[335471845,1724251846303,-4042.87695368,0.0001367,2]
[335471846,1724251846315,-11873.24394749,0.0001367,2]
[335471847,1724251846326,-261785.53444556,0.0001367,2]
[335471848,1724251846337,-294.73,0.0001367,2]
[335471849,1724251846437,-335.30570427,0.0001367,2]
[335471850,1724251846453,-1447.12433338,0.0001367,2]
[335471851,1724251846464,-692.17038355,0.0001367,2]
[335471852,1724251846475,-10674.50746448,0.0001367,2]
[335471853,1724251846487,-34665.0926168,0.0001367,2]
[335471854,1724251846497,-1563.105,0.0001367,2]
[335471855,1724251846508,-4424.73536465,0.0001367,2]
[335471856,1724251846519,-1208.0,0.0001367,2]
[335471857,1724251846530,-677.57587675,0.0001367,2]
[335471858,1724251846568,-983.5,0.0001367,2]
[335471859,1724251846579,-2928.23241173,0.0001367,2]
[335471860,1724251846591,-8543.02731611,0.0001367,2]
[335471895,1724252052403,3111.91,9.9e-05,2]
[335471897,1724252121714,500.0,9.9e-05,2]
[335471898,1724252122059,500.0,9.9e-05,2]
[335471899,1724252122415,500.0,9.9e-05,2]
[335471900,1724252123123,500.0,9.9e-05,2]
[335471901,1724252123466,500.0,9.9e-05,2]
[335471902,1724252123820,500.0,9.9e-05,2]
[335471903,1724252124154,500.0,9.9e-05,2]
[335471904,1724252124538,500.0,9.9e-05,2]
[335471905,1724252125234,500.0,9.9e-05,2]
[335471906,1724252125580,500.0,9.9e-05,2]
[335471907,1724252125947,598.0,9.9e-05,2]
[335471913,1724252504475,605.3907085,9.9e-05,2]
[335471915,1724252779300,155.0,9.9e-05,2]
[335471916,1724252796520,384.19573599,9.9e-05,2]
[335471917,1724252811055,723.4040354,9.9e-05,2]
[335471918,1724252815303,171.47888498,9.9e-05,2]
[335471919,1724252866819,155.35046972,9.9e-05,2]
[335471920,1724252870820,3590.148019,9.899e-05,2]
[335471921,1724252973589,-548.0,9.949e-05,2]
[335471922,1724252973632,-849.05039739,0.0001,2]
[335471941,1724253032236,-200.94960261,0.0001,2]
[335471942,1724253032245,-383.62,0.0001008,2]
[335471943,1724253032255,-183.00821368,0.00010199,2]
[335471944,1724253032264,-300.0,0.00010299,2]
[335471945,1724253032274,-300.0,0.00010299,2]
[335471946,1724253032285,-1697.0288294,0.000103,5]
[335471947,1724253032298,-619.65174307,0.000103,5]
[335471948,1724253032310,-6683.26958659,0.000103,5]
[335471949,1724253032344,-2493.04984094,0.000103,5]
[335471950,1724253032353,-2113.62749358,0.00010471,2]
[335471951,1724253032363,-798.78426727,0.00010713,2]
[335471952,1724253032373,-155.0,0.00010852,2]
[335471953,1724253032383,-304.98885108,0.0001089,2]
[335471954,1724253032394,-195.00114892,0.0001089,2]
[335471955,1724253032404,-2668.28,0.0001089,2]
[335471956,1724253032414,-542.75275841,0.0001089,2]
[335471957,1724253032425,-637.20804793,0.0001089,2]
[335471958,1724253032438,-7057.70919366,0.0001089,2]
[335471959,1724253032447,-723.76100526,0.00010949,2]
[335471960,1724253032457,-2166.63299806,0.00010949,2]
[335471961,1724253032467,-30.5664324,0.00010949,2]
[335471962,1724253032478,-363.76455997,0.00010949,2]
[335471963,1724253032489,-644.4503927,0.00010949,2]
[335471964,1724253032501,-1299.333284,0.00010949,2]
[335471965,1724253032513,-4099.81484206,0.00010949,2]
[335471966,1724253032523,-1362.06320368,0.00010949,2]
[335471967,1724253032532,-160.39,0.00010959,2]
[335471968,1724253032542,-154.95,0.00010959,2]
[335471969,1724253032552,-7417.07611359,0.00010979,2]
[335471970,1724253032561,-298.80085922,0.00010979,2]
[335471971,1724253032570,-1739.20258149,0.00010989,2]
[335471972,1724253032580,-1349.57268408,0.00010989,2]
[335471973,1724253032589,-260.39879964,0.00010989,2]
[335471974,1724253032599,-178.29633289,0.00010989,2]
[335471975,1724253032608,-287.17126109,0.00010989,2]
[335471976,1724253032617,-150.0,0.00010992,2]
[335471977,1724253032626,-374.66332225,0.00010999,2]
[335472008,1724253033051,-5373.36897696,0.00010999,2]
[335472009,1724253033065,-784.34351086,0.00010999,2]
[335472010,1724253033081,-966.21666469,0.00010999,2]
[335472011,1724253033093,-741.8811006,0.00010999,2]
[335472012,1724253033106,-5302.54642464,0.00010999,2]
[335472013,1724253033116,-4799.69330693,0.00010999,2]
[335472014,1724253033126,-3877.81959156,0.00010999,2]
[335472015,1724253033135,-3651.37,0.00011127,2]
[335472016,1724253033145,-420.0,0.00011329,2]
[335472017,1724253033155,-240.14,0.00011409,2]
[335472018,1724253033166,-262.4,0.00011694,2]
[335472019,1724253033175,-208.1,0.00011998,2]
[335472020,1724253033188,-1100.0,0.00012,2]
[335472021,1724253033198,-6411.78,0.00012,2]
[335472022,1724253033208,-255.0,0.00012036,2]
[335472023,1724253033218,-160.9817668,0.00012126,2]
[335472024,1724253033228,-383.62,0.00012344,2]
[335472025,1724253033238,-587.0,0.00012462,2]
[335472026,1724253033248,-737.6,0.00012512,2]
[335472027,1724253033259,-167.64,0.00012556,2]
[335472028,1724253033269,-150.99,0.00012966,2]
[335472029,1724253033279,-1130.79,0.00013,3]
[335472030,1724253033289,-156.36720659,0.00013001,2]
[335472031,1724253033298,-1247.04511089,0.00013001,2]
[335472032,1724253033309,-192.4963646,0.00013042,2]
[335472033,1724253033319,-365.2936023,0.00013052,2]
[335472034,1724253033329,-155.0,0.00013052,2]
[335472035,1724253033338,-262.4,0.00013156,2]
[335472036,1724253033348,-12314.42324481,0.000132,2]
[335472037,1724253033359,-529.94651814,0.00013292,2]
[335472038,1724253033370,-218.814,0.0001347,2]
[335472039,1724253033380,-2454.7959,0.0001347,2]
[335472040,1724253033390,-260.1469,0.0001347,2]
[335472041,1724253033400,-7260.3598374,0.0001347,2]
[335472042,1724253033410,-208.1,0.00013498,2]
[335472043,1724253033419,-1187.78655,0.0001353,2]
[335472044,1724253033430,-5804.96287726,0.0001354,2]
[335472045,1724253033443,-30610.5293,0.00013569,2]
[335472046,1724253033453,-8977.36139272,0.0001357,2]
[335472047,1724253033467,-5893.46260728,0.0001357,2]
[335472048,1724253033477,-193.9394257,0.0001357,2]
[335472049,1724253033489,-178.1345743,0.0001357,2]
[335472050,1724253033499,-494.2078257,0.0001357,2]
[335472051,1724253033519,-2522.06617273,0.0001357,2]
[335472052,1724253033531,-1383.46480157,0.0001357,2]
[335472053,1724253033540,-6001.46076427,0.0001357,2]
[335472054,1724253033552,-331.76990448,0.0001357,2]
[335472058,1724253038360,-629.05909233,0.00011127,2]
[335472059,1724253038370,-654.19278263,0.00011336,2]
[335472060,1724253038381,-159.08772237,0.00013001,2]
[335472061,1724253038391,-3.1474561,0.0001357,2]
[335472062,1724253038403,-8984.34558477,0.0001357,2]
[335472063,1724253038540,-250.485,0.0001357,2]
[335472064,1724253038553,-1188.045,0.0001357,2]
[335472065,1724253038564,-20545.10669999,0.0001357,2]
[335472066,1724253038576,-576.87446552,0.0001357,2]
[335472067,1724253038588,-812.64781524,0.0001357,2]
[335472068,1724253038599,-918.803945,0.0001357,2]
[335472069,1724253038669,-48068.77966463,0.0001357,2]
[335472070,1724253038679,-169.7075,0.0001357,2]
[335472071,1724253038688,-168.26330186,0.0001357,2]
[335472072,1724253038708,-158.56744269,0.0001357,2]
[335472073,1724253038718,-282.81477072,0.0001357,2]
[335472074,1724253038729,-253.9402245,0.0001357,2]
[335472075,1724253038738,-172.46467046,0.0001357,2]
[335472076,1724253038747,-1350.9191305,0.0001357,2]
[335472077,1724253038757,-5284.2917,0.0001357,2]
[335472078,1724253038766,-764.0,0.00013589,2]
[335472079,1724253038775,-21777.0,0.00013599,2]
[335472080,1724253038785,-979.619,0.00013599,2]
[335472082,1724253038794,-5847.0,0.00013599,2]
[335472084,1724253038803,-1674.801,0.00013599,2]
[335472086,1724253038812,-289.683,0.00013599,2]
[335472088,1724253038821,-1077.564,0.00013599,2]
[335472090,1724253038830,-7260.35983739,0.00013623,2]
[335472092,1724253038840,-5918.50174552,0.00013669,2]
[335472094,1724253038849,-150.01,0.00013669,2]
[335472095,1724253038859,-376233.47890177,0.0001367,2]
[335472097,1724253038868,-825.0,0.0001367,2]
[335472099,1724253038878,-303891.10532555,0.0001367,2]
[335472101,1724253038890,-902.63081299,0.0001367,2]
[335472283,1724253040642,-3673.30152107,9.981e-05,2]
[335472285,1724253040652,-195.67269969,0.00013669,2]
[335472287,1724253040662,-194331.33534091,0.0001367,2]
[335472289,1724253040673,-1593.55023297,0.0001367,2]
[335472291,1724253040685,-10003.8851503,0.0001367,2]
[335472293,1724253040699,-2053.05735365,0.0001367,2]
[335472295,1724253040710,-2268.5,0.0001367,2]
[335472297,1724253040721,-1308.53482217,0.0001367,2]
[335472299,1724253040733,-1007.52312096,0.0001367,2]
[335472302,1724253040744,-26012.45837098,0.0001367,2]
[335472304,1724253040755,-4599.48305126,0.0001367,2]
[335472306,1724253040767,-719.26763437,0.0001367,2]
[335472308,1724253040779,-1140.8915915,0.0001367,2]
[335472310,1724253040791,-5169.12813013,0.0001367,2]
[335472312,1724253040803,-162232.10301073,0.0001367,2]
[335472314,1724253040814,-131493.76972069,0.0001367,2]
[335472321,1724253040927,-800.0,0.0001367,2]
[335472322,1724253040939,-879.13635707,0.0001367,2]
[335472323,1724253040953,-533.04389811,0.0001367,2]
[335472324,1724253040964,-3245.15724244,0.0001367,2]
[335472325,1724253040975,-1218.87342695,0.0001367,2]
[335472326,1724253040987,-262.83000001,0.0001367,2]
[335472487,1724253044105,-156.36720659,0.00012966,2]
[335472488,1724253044117,-203.3713556,0.0001357,2]
[335472489,1724253044129,-596.48016507,0.0001357,2]
[335472490,1724253044248,-609.0272643,0.0001357,2]
[335472491,1724253044260,-4900.39600852,0.0001357,2]
[335472492,1724253044272,-2196.09357154,0.0001357,2]
[335472493,1724253044282,-11583.07821994,0.0001367,2]
[335472494,1724253044294,-7300.0,0.0001367,2]
[335472495,1724253044305,-6662.113764,0.0001367,2]
[335472496,1724253044317,-328.04999985,0.0001367,2]
[335472497,1724253044329,-29741.84051448,0.0001367,2]
[335472498,1724253044341,-1302.1840501,0.0001367,2]
[335472499,1724253044374,-120429.74019492,0.0001367,2]
[335472500,1724253044386,-646656.74581744,0.0001367,2]
[335472501,1724253044398,-5461.22,0.0001367,2]
[335472502,1724253044409,-777.81467265,0.0001367,2]
[335472548,1724253045892,-1720.3100005,0.0001367,2]
[335472549,1724253045923,-5420.415,0.0001367,2]
[335472550,1724253046483,-735.0,0.0001367,2]
[335472551,1724253046492,-1647.80711057,0.0001367,2]
[335472552,1724253046504,-1470.51803953,0.0001367,2]
[335472553,1724253046515,-792.73224283,0.0001367,2]
[335472554,1724253046526,-2985.11727615,0.0001367,2]
[335472555,1724253046595,-2289.91559988,0.0001367,2]
[335472556,1724253046606,-5925.18713681,0.0001367,2]
[335472557,1724253046617,-265.595,0.0001367,2]
[335472558,1724253046628,-5486.25292594,0.0001367,2]
[335472559,1724253046697,-65365.10517171,0.0001367,2]
[335472560,1724253046711,-6770.28999999,0.0001367,2]
[335472561,1724253046722,-656.37,0.0001367,2]
[335472580,1724253055534,9028.9895,9.849e-05,2]
[335472581,1724253234101,502.90966668,9.849e-05,2]
[335472582,1724253266086,693.81147751,9.849e-05,2]
[335472583,1724253310243,155.0,9.849e-05,2]
[335472584,1724253345207,150.0,0.00010066,2]
[335472585,1724253345229,150.0,0.00010066,2]
[335472586,1724253345250,150.0,0.00010066,2]
[335472587,1724253345272,190.23546607,0.00010066,2]
[335472588,1724253345293,145.99690555,0.00010066,2]
[335472589,1724253357073,150.0,9.849e-05,2]
[335472590,1724253357094,55.14503324,9.849e-05,2]
[335472591,1724253404238,150.0,0.00010066,2]
[335472592,1724253404261,107.04102161,0.00010066,2]
[335472593,1724253417864,150.0,0.00010066,2]
[335472594,1724253417885,6.0,0.00010066,2]
[335472595,1724253486092,150.0,0.00010066,2]
[335472596,1724253486114,150.0,0.00010066,2]
[335472597,1724253905915,150.0,0.0001,2]
[335472598,1724253905937,150.0,0.0001,2]
[335472599,1724253905959,150.0,0.0001,2]
[335472600,1724253905981,150.0,0.0001,2]
[335472601,1724253906002,150.0,0.0001,2]
[335472602,1724253906024,177.40324018,0.0001,2]
[335472603,1724253906067,122.59675982,0.0001,2]
[335472609,1724253929536,150.0,0.000101,2]
[335472610,1724253929557,150.0,0.000101,2]
[335472611,1724253929578,150.0,0.000101,2]
[335472612,1724253929600,150.0,0.000101,2]
[335472613,1724253929623,150.0,0.000101,2]
[335472614,1724253929652,150.0,0.000101,2]
[335472615,1724253929674,150.0,0.000101,2]
[335472616,1724253929695,150.0,0.000101,2]
[335472617,1724253929718,150.0,0.000101,2]
[335472618,1724253929738,150.0,0.000101,2]
[335472619,1724253929759,150.0,0.000101,2]
[335472620,1724253929779,150.0,0.000101,2]
[335472621,1724253929799,150.0,0.000101,2]
[335472622,1724253929820,150.0,0.000101,2]
[335472623,1724253929840,150.0,0.000101,2]
[335472624,1724253929861,150.0,0.000101,2]
[335472625,1724253929882,150.0,0.000101,2]
[335472626,1724253929904,150.0,0.000101,2]
[335472627,1724253929925,150.0,0.000101,2]
[335472628,1724253929946,150.0,0.000101,2]
[335472629,1724253929967,150.0,0.000101,2]
[335472630,1724253929988,150.0,0.000101,2]
[335472631,1724253930009,150.0,0.000101,2]
[335472632,1724253930030,150.0,0.000101,2]
[335472633,1724253930051,150.0,0.000101,2]
[335472634,1724253930071,150.0,0.000101,2]
[335472635,1724253930108,559.58948333,0.000101,2]
[335472636,1724253930151,2791.78268383,0.000101,2]
[335472637,1724253930187,2216.04357563,0.000101,2]
[335472638,1724253930224,2172.00310223,0.000101,2]
[335472639,1724253930261,1620.46112962,0.000101,2]
[335472640,1724253930297,1446.8825192,0.000101,2]
[335472641,1724253930333,2579.79105083,0.000101,2]
[335472642,1724253930369,2126.86106086,0.000101,2]
[335472643,1724253930406,2505.87815027,0.000101,2]
[335472644,1724253930448,-150.0,0.000101,2]
[335472645,1724253930490,-150.0,0.000101,2]
[335472646,1724253930528,-150.0,0.000101,2]
[335472647,1724253930560,-150.0,0.000101,2]
[335472648,1724253930592,-150.0,0.000101,2]
[335472649,1724253930622,-150.0,0.000101,2]
[335472650,1724253930658,-150.0,0.000101,2]
[335472651,1724253930691,-150.0,0.000101,2]
[335472652,1724253930718,-150.0,0.000101,2]
[335472653,1724253930747,-150.0,0.000101,2]
[335472654,1724253930784,-150.0,0.000101,2]
[335472657,1724254181833,-3181.65489703,9.999e-05,2]
[335472663,1724254181924,-848.41332277,9.999e-05,2]
[335472697,1724254232607,-1410.40088355,0.0001,2]
[335472698,1724254232616,-300.0,0.00010099,2]
[335472699,1724254232626,-126013.1669962,0.000101,2]
[335472700,1724254232635,-360.78,0.00010318,2]
[335472701,1724254232645,-1033.43289267,0.00010471,2]
[335472702,1724254232654,-250.0,0.00010471,2]
[335472703,1724254232663,-2111.90506222,0.00010471,2]
[335472704,1724254232674,-304.58048687,0.00010505,2]
[335472705,1724254232683,-299.22193951,0.00010505,2]
[335472706,1724254232692,-794.0,0.00010596,2]
[335472707,1724254232702,-3821.61767733,0.00010713,2]
[335472708,1724254232711,-2940.54198821,0.00010899,2]
[335472709,1724254232721,-271.15585624,0.00010949,2]
[335472710,1724254232730,-153.06,0.00010959,2]
[335472711,1724254232740,-150.99,0.00010959,2]
[335472712,1724254232749,-159.22,0.00010959,2]
[335472713,1724254232759,-292.76862131,0.00010999,2]
[335472714,1724254232768,-162.18869921,0.00010999,2]
[335472715,1724254232778,-420.0,0.00011108,2]
[335472716,1724254232787,-794.0,0.00011154,2]
[335472717,1724254232796,-499.99,0.00011154,2]
[335472718,1724254232806,-658.1228,0.00011236,2]
[335472719,1724254232815,-197.45670583,0.00011336,2]
[335472720,1724254232825,-2249.6,0.00011353,2]
[335472721,1724254232834,-250.0,0.00011375,2]
[335472722,1724254232843,-842.56,0.00011508,2]
[335472723,1724254232856,-1164.40297485,0.00011675,2]
[335472724,1724254232879,-1737.07702515,0.00011675,2]
[335472725,1724254232888,-9.47360011,0.00011683,2]
[335472726,1724254232899,-258.58639989,0.00011683,2]
[335472727,1724254232909,-1950.0,0.00011703,2]
[335472728,1724254232919,-150.0,0.00011733,2]
[335472729,1724254232928,-794.0,0.00011741,2]
[335472730,1724254232938,-157.44,0.00011753,2]
[335472731,1724254232947,-194.04850305,0.00011999,2]
[335472732,1724254232959,-81.19798559,0.00011999,2]
[335472733,1724254232968,-687.53484988,0.00012121,2]
[335472734,1724254232977,-587.0,0.00012217,2]
[335472735,1724254232987,-909.98,0.00012236,2]
[335472736,1724254232997,-794.0,0.00012359,2]
[335472737,1724254233006,-10258.731,0.00012359,2]
[335472738,1724254233015,-360.78,0.00012582,2]
[335472739,1724254233025,-208.08,0.00012778,2]
[335472740,1724254233035,-842.56,0.00012946,2]
[335472741,1724254233044,-794.0,0.00013009,2]
[335472742,1724254233053,-570.63546921,0.000132,2]
[335472743,1724254233063,-157.44,0.00013222,2]
[335472744,1724254233073,-306.31409132,0.00013394,2]
[335472745,1724254233083,-150.0,0.00013405,2]
[335472746,1724254233093,-150.0,0.0001342,2]
[335472747,1724254233102,-823.0,0.00013438,2]
[335472748,1724254233113,-150.0,0.00013464,2]
[335472749,1724254233123,-388.07971391,0.00013469,2]
[335472750,1724254233132,-32879.2761,0.0001347,2]
[335472751,1724254233141,-150.0,0.0001347,2]
[335472752,1724254233151,-229.6487844,0.00013473,2]
[335472753,1724254233161,-1500.0,0.00013476,2]
[335472754,1724254233171,-150.0,0.00013479,2]
[335472755,1724254233180,-150.0,0.0001348,2]
[335472756,1724254233190,-956369.70882724,0.0001348,2]
[335472762,1724254238479,-155.0,0.00010097,2]
[335472763,1724254238490,-2009.78490899,0.0001348,2]
[335472764,1724254238503,-1012.06172997,0.0001348,2]
[335472774,1724254238988,-3749.0,0.0001348,2]
[335472775,1724254238999,-3846.94404154,0.0001348,2]
[335472776,1724254239014,-585.70767439,0.0001348,2]
[335472777,1724254239029,-468.87,0.0001348,2]
[335472778,1724254239040,-17878.8,0.0001348,2]
[335472838,1724254240780,-942.60682671,0.0001348,2]
[335472839,1724254240791,-5625.7448007,0.0001348,2]
[335472840,1724254240937,-2264.48904993,0.0001348,2]
[335472841,1724254240950,-180991.70109468,0.0001348,2]
[335472842,1724254240963,-1190.88806413,0.0001348,2]
[335472843,1724254240983,-4229.03249228,0.0001348,2]
[335472844,1724254240994,-4019.09127962,0.0001348,2]
[335472845,1724254241006,-315.6,0.0001348,2]
[335472846,1724254241031,-1367.02460692,0.0001348,2]
[335473014,1724254246581,-461.88700199,0.0001348,2]
[335473015,1724254249016,150.0,9.346e-05,2]
[335473016,1724254257279,-3749.0,0.00012242,2]
[335473017,1724254320130,150.0,9.765e-05,2]
[335473018,1724254320154,189.74,9.765e-05,2]
[335473020,1724254530288,150.0,9.727e-05,2]
[335473021,1724254530309,22.97,9.727e-05,2]
[335473022,1724254798200,262.17913044,9.727e-05,2]
[335473023,1724254859019,-2798.28384389,0.00010888,2]
[335473024,1724254859040,-2742.0,0.00010948,2]
[335473025,1724254859062,-160.39,0.00010959,2]
[335473026,1724254859086,-186.3894,0.00011582,2]
[335473027,1724254859108,-1000.0,0.00011683,2]
[335473028,1724254859129,-1052.82338439,0.0001179,2]
[335473029,1724254859149,-423.09,0.00011895,2]
[335473030,1724254859170,-300.0,0.00011963,2]
[335473031,1724254859191,-1039.32,0.00011964,2]
[335473032,1724254859212,-300.0,0.00012009,2]
[335473033,1724254859233,-499.99,0.00012009,2]
[335473034,1724254859253,-4672.83,0.0001201,2]
[335473035,1724254859274,-536.3843632,0.00012089,2]
[335473036,1724254859295,-1852.42,0.00012115,2]
[335473037,1724254859315,-250.0,0.00012319,2]
[335473038,1724254859340,-233.53,0.0001246,2]
[335473039,1724254859360,-200.0,0.00012555,2]
[335473040,1724254859382,-23900.0,0.00012592,2]
[335473041,1724254859402,-427.23,0.00012623,2]
[335473042,1724254859423,-4092.4743,0.000129,2]
[335473043,1724254859445,-5364.9127,0.000129,2]
[335473044,1724254859468,-828.23045277,0.00012943,2]
[335473045,1724254859490,-172.46467045,0.00012943,2]
[335473046,1724254859511,-306.31409132,0.00012943,2]
[335473047,1724254859533,-150.0,0.00012999,2]
[335473048,1724254859558,-188116.73945088,0.00013,2]
[335473049,1724254859581,-1500.0,0.00013,3]
[335473050,1724254859604,-4487375.93436589,0.00013,2]
[335473051,1724254859627,-1000.0,0.00013143,2]
[335473052,1724254859650,-420.0,0.00013159,2]
[335473053,1724254859670,-420.0,0.00013183,2]
[335473054,1724254859693,-3464859.64698521,0.0001324,2]
[335473055,1724254859718,-500.0,0.00013273,2]
[335473056,1724254859738,-400.65807284,0.00013273,2]
[335473057,1724254859759,-306.31409132,0.0001331,2]
[335473058,1724254859782,-5703.9848,0.0001337,2]
[335473059,1724254859802,-598.617,0.0001338,2]
[335473060,1724254859822,-1925.0,0.000134,2]
[335473061,1724254859844,-150.0,0.00013402,2]
[335473062,1724254859866,-150.0,0.00013406,2]
[335473063,1724254859888,-828.23045276,0.00013422,2]
[335473064,1724254859912,-150.0,0.00013434,2]
[335473065,1724254859936,-1184.54401,0.0001344,2]
[335473066,1724254859958,-150.0,0.00013457,2]
[335473067,1724254859979,-769370.91107502,0.0001348,2]
[335473068,1724254859999,-2000.0,0.0001348,2]
[335473069,1724254860020,-200.0,0.0001348,2]
[335473070,1724254860041,-2000.0,0.0001348,2]
[335473071,1724254860062,-200.0,0.0001348,2]
[335473072,1724254860094,-150.0,0.000135,2]
[335473073,1724254860116,-150.0,0.00013516,2]
[335473074,1724254860137,-1500.0,0.00013518,2]
[335473075,1724254860157,-150.0,0.00013528,2]
[335473076,1724254860177,-1500.0,0.00013533,2]
[335473077,1724254860199,-150.0,0.00013556,2]
[335473078,1724254860220,-168.26330186,0.0001357,2]
[335473079,1724254860242,-2000.0,0.00013615,2]
[335473080,1724254860263,-200.0,0.00013615,2]
[335473081,1724254860284,-200.0,0.00013615,2]
[335473082,1724254860306,-843370.9212443,0.0001366,2]
[335473083,1724254860331,-151.0,0.0001366,2]
[335473084,1724254860352,-7603.5126879,0.00013663,2]
[335473085,1724254860373,-19081.6730218,0.00013663,2]
[335473086,1724254860393,-114388.3168891,0.00013663,2]
[335473087,1724254860416,-5918.50174552,0.00013669,2]
[335473088,1724254860436,-750.0,0.0001367,2]
[335473089,1724254860456,-714.08477665,0.0001367,2]
[335473090,1724254860477,-360.56009078,0.0001367,2]
[335473091,1724254860497,-200.0,0.0001367,2]
[335473092,1724254860518,-600.11225298,0.00013673,2]
[335473093,1724254860538,-400.58741575,0.00013673,2]
[335473094,1724254860911,-200.79125792,0.00013673,2]
[335473095,1724254860933,-9380.78642676,0.00013687,2]
[335473096,1724254860955,-794.0,0.00013694,2]
[335473097,1724254860975,-500.0,0.00013698,2]
[335473098,1724254860996,-500.0,0.00013698,2]
[335473099,1724254861016,-500.0,0.00013698,2]
[335473100,1724254861037,-500.0,0.00013698,2]
[335473101,1724254861058,-501.56145246,0.00013698,2]
[335473102,1724254861080,-500.0,0.00013698,2]
[335473103,1724254861102,-500.0,0.00013698,2]
[335473104,1724254861122,-509.36433674,0.00013698,2]
[335473105,1724254861143,-299.08217471,0.00013698,2]
[335473106,1724254861163,-500.0,0.00013698,2]
[335473107,1724254861183,-500.0,0.00013698,2]
[335473108,1724254861203,-500.0,0.00013698,2]
[335473109,1724254861224,-197.48935918,0.00013698,2]
[335473110,1724254861245,-500.0,0.00013698,2]
[335473111,1724254861266,-500.0,0.00013698,2]
[335473112,1724254861287,-500.0,0.00013698,2]
[335473113,1724254861308,-500.0,0.00013698,2]
[335473114,1724254861329,-508.66223406,0.00013698,2]
[335473115,1724254861350,-500.0,0.00013698,2]
[335473116,1724254861376,-500.0,0.00013698,2]
[335473117,1724254861396,-500.0,0.00013698,2]
[335473118,1724254861416,-500.0,0.00013698,2]